fUSD/lending_fUSD_20250929
["ID","MTS","AMOUNT","RATE_DAILY","PERIOD"]
[388419617,1759163432207,-500.0,0.00016998,2]
[388419618,1759163432217,-500.0,0.00016998,2]
[388419619,1759163432226,-505.26829285,0.00016998,2]
[388419620,1759163432236,-500.0,0.00016998,2]
[388419621,1759163432246,-500.0,0.00016998,2]
[388419623,1759163432256,-500.0,0.00016998,2]
[388419626,1759163432266,-500.0,0.00016998,2]
[388419628,1759163432276,-500.0,0.00016998,2]
[388419629,1759163432286,-500.0,0.00016998,2]
[388419630,1759163432297,-500.0,0.00016998,2]
[388419631,1759163432307,-500.0,0.00016998,2]
[388419633,1759163432318,-1484.11013941,0.00016999,5]
[388419635,1759163432328,-300.0,0.00016999,2]
[388419637,1759163432338,-300.0,0.00016999,2]
[388419639,1759163432349,-198.13666556,0.00016999,2]
[388419641,1759163432358,-300.13900698,0.00016999,2]
[388419643,1759163432368,-199.81157601,0.00016999,2]
[388419644,1759163432378,-77247.17817597,0.00017,2]
[388419645,1759163432392,-12434.83865656,0.00017,2]
[388419646,1759163432404,-15827.82978916,0.00017,2]
[388419689,1759163439962,-3096.16334906,0.00017,2]
[388419690,1759163439974,-280.12501203,0.00017,2]
[388419691,1759163439986,-2335.64256114,0.00017,2]
[388419692,1759163439998,-12663.05614011,0.00017,2]
[388419693,1759163440011,-2157.92961323,0.00017,2]
[388419694,1759163440068,-318.72379999,0.00017,2]
[388419695,1759163440080,-3487.9845,0.00017,2]
[388419696,1759163440091,-655.72133057,0.00017,2]
[388419697,1759163440126,-504062.08349114,0.00017,2]
[388419698,1759163440136,-5140736.58011679,0.00017,2]
[388419699,1759163440147,-250.0,0.00017,2]
[388419700,1759163440156,-76039.5841914,0.00017,2]
[388419710,1759163442858,-23325.26324672,0.00017,2]
[388419712,1759163442871,-724.24332236,0.00017,2]
[388419713,1759163442883,-2499.80004621,0.00017,2]
[388419714,1759163442899,-316.47033406,0.00017,2]
[388419715,1759163442954,-911.18329694,0.00017,2]
[388419716,1759163442966,-1191.31818181,0.00017,2]
[388419717,1759163442978,-870.60764668,0.00017,2]
[388419718,1759163442990,-4193.18484273,0.00017,2]
[388419719,1759163443011,-814.82264092,0.00017,2]
[388419720,1759163443023,-8412.96873317,0.00017,2]
[388419721,1759163443035,-3319.3363218,0.00017,2]
[388419722,1759163443075,-1615.12814222,0.00017,2]
[388419723,1759163443089,-449.0,0.00017,2]
[388419724,1759163443122,-400.0,0.00017,2]
[388419725,1759163443160,-1142500.00000045,0.00017,2]
[388419726,1759163443172,-1463.32378148,0.00017,2]
[388419729,1759163443573,-440.72610355,0.000169,2]
[388419730,1759163443637,-172.56259875,0.000169,2]
[388419731,1759163443647,-67941.38771344,0.00017,2]
[388419732,1759163443749,-400.0,0.00017,2]
[388419733,1759163443760,-932.01236101,0.00017,2]
[388419734,1759163443807,-2117.85935819,0.00017,2]
[388419937,1759163445921,-500.0,0.00016899,2]
[388419939,1759163445931,-500.0,0.00016899,2]
[388419941,1759163445941,-222.80758809,0.00016899,2]
[388419943,1759163445950,-92085.06967493,0.00017,2]
[388419947,1759163445986,-10971.39699454,0.00017,2]
[388419949,1759163445997,-4902.56672345,0.00017,2]
[388419954,1759163446035,-667.45350373,0.00017,2]
[388419966,1759163446143,-1965.768832,0.00017,2]
[388419986,1759163446319,-21065.99189781,0.00017,2]
[388422072,1759163468104,10684.54211,7.945e-05,2]
[388422225,1759163481866,346.37332356,0.000166,2]
[388422294,1759163514301,6141.58456644,0.00016,2]
[388422295,1759163514327,192651.0575797,0.00016,2]
[388422368,1759163560600,249.89,0.00016576,2]
[388422439,1759163598032,156.0,8.167e-05,2]
[388422440,1759163598469,156.0,9.529e-05,2]
[388422441,1759163598688,156.0,0.0001089,2]
[388422442,1759163598954,156.0,0.00012251,2]
[388422443,1759163599189,156.0,0.00013612,2]
[388422444,1759163599390,156.0,0.00014974,2]
[388422445,1759163599641,156.0,0.00016335,2]
[388422446,1759163624539,785.09,0.00016337,2]
[388422447,1759163628030,1087.94,0.00016337,2]
[388422461,1759163645543,4546.65,0.00016467,2]
[388422469,1759163666458,200.0,0.00016337,2]
[388422742,1759163935223,9123.33,0.00015892,2]
[388422745,1759163941072,1000.0,0.00016438,2]
[388422762,1759163944575,165.03,0.00015892,2]
[388422769,1759163974008,581.08,0.00015859,2]
[388423033,1759164097784,4795.35,0.00016438,2]
[388423066,1759164154149,170.44,0.00012694,2]
[388423068,1759164159261,250.0,0.00015868,2]
[388423074,1759164187379,610.0,0.00015862,2]
[388423082,1759164202088,190.46,0.00015864,2]
[388423089,1759164308477,150.0,0.00015288,2]
[388423090,1759164308530,150.0,0.000155,2]
[388423091,1759164308605,150.0,0.00015712,2]
[388423092,1759164308673,150.0,0.00015925,2]
[388423093,1759164308732,150.0,0.00016137,2]
[388423094,1759164308802,150.0,0.00016349,2]
[388423095,1759164308899,150.0,0.00016562,2]
[388423096,1759164309557,150.0,0.00015288,2]
[388423097,1759164309630,150.0,0.0001553,2]
[388423098,1759164309684,150.0,0.00015773,2]
[388423099,1759164309728,150.0,0.00016016,2]
[388423100,1759164309811,150.0,0.00016258,2]
[388423101,1759164309869,150.0,0.00016501,2]
[388423103,1759164311045,150.0,0.00015288,2]
[388423104,1759164311110,150.0,0.00015627,2]
[388423105,1759164311172,150.0,0.00015967,2]
[388423106,1759164311237,150.0,0.00016307,2]
[388423108,1759164314785,150.0,0.00015288,2]
[388423109,1759164314828,150.0,0.00015627,2]
[388423110,1759164314879,150.0,0.00015967,2]
[388423111,1759164314947,150.0,0.00016307,2]
[388423112,1759164315246,150.0,0.00015288,2]
[388423113,1759164315311,150.0,0.00015854,2]
[388423114,1759164315376,150.0,0.0001642,2]
[388423115,1759164315514,150.0,0.00015288,2]
[388423116,1759164315584,150.0,0.00015712,2]
[388423117,1759164315635,150.0,0.00016137,2]
[388423118,1759164315682,150.0,0.00016562,2]
[388423120,1759164317711,151.5055723,0.00015288,2]
[388423123,1759164324332,150.0,0.00015288,2]
[388423124,1759164324535,150.0,0.00015288,2]
[388423125,1759164324585,150.0,0.00016137,2]
[388423126,1759164324694,150.0,0.00015288,2]
[388423127,1759164324735,150.0,0.00016137,2]
[388423128,1759164324941,150.0,0.00015288,2]
[388423129,1759164325000,150.0,0.00015854,2]
[388423130,1759164325084,150.0,0.0001642,2]
[388423131,1759164326461,150.0,0.00015288,2]
[388423132,1759164329162,150.0,0.00015288,2]
[388423133,1759164329202,150.0,0.00015429,2]
[388423134,1759164329252,150.0,0.00015571,2]
[388423135,1759164329325,150.0,0.00015712,2]
[388423136,1759164329396,150.0,0.00015854,2]
[388423137,1759164329481,150.0,0.00015995,2]
[388423138,1759164329531,150.0,0.00016137,2]
[388423139,1759164329604,150.0,0.00016279,2]
[388423140,1759164329679,150.0,0.0001642,2]
[388423141,1759164329747,150.0,0.00016562,2]
[388423144,1759164332721,150.0,0.00015288,2]
[388423145,1759164332758,150.0,0.00015571,2]
[388423146,1759164332810,150.0,0.00015854,2]
[388423147,1759164332856,150.0,0.00016137,2]
[388423148,1759164332898,150.0,0.0001642,2]
[388423150,1759164338559,150.0,0.00015288,2]
[388423151,1759164338615,150.0,0.00015854,2]
[388423152,1759164338669,150.0,0.0001642,2]
[388423153,1759164344957,200.0,0.00015852,2]
[388423157,1759164397123,169.0,7e-07,2]
[388423238,1759164443087,1950.82,0.00015847,2]
[388423260,1759164470459,310.73,0.00015845,2]
[388423288,1759164534606,1819.17,0.00015853,2]
[388423323,1759164578733,381.61,0.00015832,2]
[388423332,1759164616210,200.0,0.00015832,2]
[388423333,1759164617986,628.07,0.00015832,2]
[388423344,1759164632051,-300.0,0.00016622,2]
[388423345,1759164632061,-1008.42358662,0.00016622,2]
[388423346,1759164632104,-191.57641338,0.00016622,2]
[388423347,1759164632114,-300.0,0.00016622,2]
[388423348,1759164632123,-195.0,0.00016623,2]
[388423349,1759164632137,-195.0,0.00016623,2]
[388423350,1759164632147,-200.0,0.00016623,2]
[388423351,1759164632156,-1607.48638386,0.00016623,2]
[388423352,1759164632168,-274.671,0.00016623,2]
[388423353,1759164632186,-117.84261614,0.00016623,2]
[388423354,1759164632196,-271.14919238,0.00016623,2]
[388423355,1759164632207,-1000.0,0.00016623,2]
[388423356,1759164632216,-1739.30480004,0.00016623,2]
[388423357,1759164632227,-639.69519996,0.00016623,2]
[388423358,1759164632237,-628.07,0.00016624,2]
[388423359,1759164632247,-168.61,0.00016624,2]
[388423360,1759164632257,-2000.0,0.00016632,2]
[388423361,1759164632266,-2000.0,0.00016632,2]
[388423362,1759164632275,-150.0,0.00016647,2]
[388423363,1759164632285,-150.0,0.00016647,2]
[388423364,1759164632294,-550.0,0.00016678,2]
[388423365,1759164632303,-500.0,0.00016678,2]
[388423366,1759164632312,-415.72334154,0.00016678,2]
[388423367,1759164632321,-666.0,0.00016679,3]
[388423368,1759164632330,-2924.57,0.00016679,2]
[388423369,1759164632339,-150.99,0.00016679,2]
[388423370,1759164632348,-6321.44,0.00016679,2]
[388423371,1759164632357,-4265.33012591,0.00016679,2]
[388423372,1759164632369,-2867.41987409,0.00016679,2]
[388423373,1759164632378,-150.99,0.00016679,2]
[388423374,1759164632387,-499.99,0.00016679,2]
[388423375,1759164632397,-9999.99,0.00016679,2]
[388423376,1759164632406,-9999.99,0.00016679,2]
[388423377,1759164632416,-428.51,0.00016679,2]
[388423378,1759164632425,-4977.45,0.00016679,2]
[388423380,1759164632434,-9999.99,0.00016679,2]
[388423382,1759164632444,-1000.0,0.00016679,2]
[388423384,1759164632453,-342.41,0.00016679,2]
[388423385,1759164632463,-182.95,0.000167,2]
[388423387,1759164632472,-150.0,0.00016703,2]
[388423389,1759164632481,-150.0,0.00016703,2]
[388423391,1759164632491,-150.0,0.00016744,2]
[388423393,1759164632500,-150.0,0.00016774,2]
[388423395,1759164632509,-1000.0,0.000168,2]
[388423397,1759164632519,-180.273,0.000168,2]
[388423399,1759164632528,-199.99357512,0.000168,2]
[388423401,1759164632538,-2500.0,0.000168,2]
[388423403,1759164632547,-590.72692019,0.000168,2]
[388423405,1759164632556,-621.81948951,0.000168,2]
[388423407,1759164632565,-199.99357507,0.00016811,2]
[388423409,1759164632575,-200.0,0.0001682,2]
[388423411,1759164632585,-500.0,0.0001682,2]
[388423412,1759164632594,-151.0,0.0001682,2]
[388423413,1759164632604,-500.0,0.0001682,2]
[388423414,1759164632613,-151.0,0.0001682,2]
[388423416,1759164632623,-500.0,0.0001682,2]
[388423418,1759164632632,-151.0,0.0001682,2]
[388423420,1759164632641,-500.0,0.0001682,2]
[388423422,1759164632650,-151.0,0.0001682,2]
[388423424,1759164632660,-500.0,0.0001682,2]
[388423426,1759164632669,-151.0,0.0001682,2]
[388423428,1759164632678,-500.0,0.0001682,2]
[388423430,1759164632688,-151.0,0.0001682,2]
[388423432,1759164632697,-500.0,0.0001682,2]
[388423434,1759164632707,-151.0,0.0001682,2]
[388423436,1759164632716,-500.0,0.0001682,2]
[388423438,1759164632725,-151.0,0.0001682,2]
[388423440,1759164632734,-151.0,0.0001682,2]
[388423442,1759164632744,-500.0,0.0001682,2]
[388423444,1759164632753,-151.0,0.0001682,2]
[388423446,1759164632762,-151.0,0.0001682,2]
[388423448,1759164632771,-500.0,0.0001682,2]
[388423450,1759164632781,-500.0,0.0001682,2]
[388423452,1759164632790,-151.0,0.0001682,2]
[388423454,1759164632799,-151.0,0.0001682,2]
[388423456,1759164632808,-151.0,0.0001682,2]
[388423458,1759164632817,-500.0,0.0001682,2]
[388423460,1759164632827,-598.52303686,0.0001682,2]
[388423462,1759164632836,-151.0,0.0001682,2]
[388423464,1759164632845,-151.0,0.0001682,2]
[388423466,1759164632855,-500.0,0.0001682,2]
[388423468,1759164632864,-151.0,0.0001682,2]
[388423470,1759164632874,-151.0,0.0001682,2]
[388423473,1759164632883,-500.0,0.0001682,2]
[388423475,1759164632893,-151.0,0.0001682,2]
[388423477,1759164632903,-151.0,0.0001682,2]
[388423479,1759164632912,-151.0,0.0001682,2]
[388423480,1759164632922,-500.0,0.0001682,2]
[388423481,1759164632932,-151.0,0.0001682,2]
[388423482,1759164632942,-151.0,0.0001682,2]
[388423484,1759164632952,-151.0,0.0001682,2]
[388423485,1759164632961,-500.0,0.0001682,2]
[388423486,1759164632971,-151.0,0.0001682,2]
[388423487,1759164632981,-151.0,0.0001682,2]
[388423488,1759164632991,-151.0,0.0001682,2]
[388423489,1759164633001,-500.0,0.0001682,2]
[388423490,1759164633012,-151.0,0.0001682,2]
[388423491,1759164633021,-200.0,0.0001682,2]
[388423492,1759164633031,-151.0,0.0001682,2]
[388423493,1759164633040,-151.0,0.0001682,2]
[388423494,1759164633049,-500.0,0.0001682,2]
[388423495,1759164633059,-151.0,0.0001682,2]
[388423496,1759164633069,-500.0,0.0001682,2]
[388423497,1759164633079,-151.0,0.0001682,2]
[388423498,1759164633088,-155.02238158,0.0001682,2]
[388423499,1759164633097,-151.0,0.0001682,2]
[388423500,1759164633107,-500.0,0.0001682,2]
[388423501,1759164633116,-151.0,0.0001682,2]
[388423502,1759164633126,-151.0,0.0001682,2]
[388423503,1759164633141,-500.0,0.0001682,2]
[388423504,1759164633151,-151.0,0.0001682,2]
[388423505,1759164633161,-151.0,0.0001682,2]
[388423506,1759164633171,-500.0,0.0001682,2]
[388423507,1759164633181,-151.0,0.0001682,2]
[388423508,1759164633191,-151.0,0.0001682,2]
[388423509,1759164633201,-500.0,0.0001682,2]
[388423510,1759164633213,-221.98529903,0.0001682,2]
[388423511,1759164633224,-151.0,0.0001682,2]
[388423512,1759164633234,-500.0,0.0001682,2]
[388423513,1759164633244,-151.0,0.0001682,2]
[388423514,1759164633254,-151.0,0.0001682,2]
[388423515,1759164633265,-151.0,0.0001682,2]
[388423516,1759164633276,-151.0,0.0001682,2]
[388423517,1759164633286,-500.0,0.0001682,2]
[388423518,1759164633295,-151.0,0.0001682,2]
[388423519,1759164633304,-151.0,0.0001682,2]
[388423520,1759164633313,-151.0,0.0001682,2]
[388423521,1759164633323,-714.12514687,0.0001682,2]
[388423522,1759164633333,-199.99357507,0.00016822,2]
[388423523,1759164633343,-4956.37874232,0.0001683,2]
[388423524,1759164633352,-9727.59188431,0.0001683,2]
[388423525,1759164633362,-199.99357507,0.00016833,2]
[388423526,1759164633372,-199.99357507,0.00016844,2]
[388423527,1759164633382,-150.0,0.00016845,2]
[388423528,1759164633392,-700.0,0.00016847,2]
[388423529,1759164633402,-199.99357507,0.00016856,2]
[388423530,1759164633412,-199.99357507,0.00016867,2]
[388423531,1759164633421,-500.0,0.00016873,2]
[388423532,1759164633431,-500.0,0.00016873,2]
[388423533,1759164633441,-500.0,0.00016873,2]
[388423534,1759164633451,-351.70113184,0.00016873,2]
[388423535,1759164633464,-148.29886816,0.00016873,2]
[388423536,1759164633474,-500.0,0.00016873,2]
[388423537,1759164633483,-500.0,0.00016873,2]
[388423538,1759164633492,-500.0,0.00016873,2]
[388423539,1759164633502,-500.0,0.00016873,2]
[388423540,1759164633511,-500.0,0.00016873,2]
[388423541,1759164633521,-500.0,0.00016873,2]
[388423542,1759164633530,-500.0,0.00016873,2]
[388423543,1759164633539,-500.0,0.00016873,2]
[388423544,1759164633549,-505.31409027,0.00016873,2]
[388423545,1759164633559,-500.0,0.00016873,2]
[388423546,1759164633568,-500.0,0.00016873,2]
[388423547,1759164633577,-500.0,0.00016873,2]
[388423548,1759164633586,-163.33284184,0.00016873,2]
[388423549,1759164633595,-501.77899718,0.00016873,2]
[388423550,1759164633606,-500.0,0.00016873,2]
[388423551,1759164633615,-500.0,0.00016873,2]
[388423552,1759164633624,-500.0,0.00016873,2]
[388423553,1759164633634,-500.0,0.00016873,2]
[388423554,1759164633644,-500.0,0.00016873,2]
[388423555,1759164633654,-500.0,0.00016873,2]
[388423556,1759164633663,-500.0,0.00016873,2]
[388423557,1759164633672,-500.0,0.00016873,2]
[388423558,1759164633681,-500.0,0.00016873,2]
[388423559,1759164633691,-2342.59209303,0.00016873,2]
[388423560,1759164633701,-156.19622203,0.00016873,2]
[388423561,1759164633710,-2342.59209302,0.00016876,2]
[388423562,1759164633719,-199.99357507,0.00016878,2]
[388423563,1759164633729,-2342.59209302,0.00016879,2]
[388423564,1759164633739,-2342.59209302,0.00016882,2]
[388423565,1759164633748,-2342.59209302,0.00016885,2]
[388423566,1759164633758,-282.287,0.00016886,2]
[388423567,1759164633767,-1613.14001901,0.00016888,2]
[388423568,1759164635536,-729.45207401,0.00016888,2]
[388423569,1759164635546,-199.99357507,0.00016889,2]
[388423570,1759164635555,-2342.59209302,0.00016891,2]
[388423571,1759164635564,-1041.89,0.00016892,2]
[388423572,1759164635573,-2342.59209302,0.00016894,2]
[388423573,1759164635584,-2342.59209302,0.00016897,2]
[388423574,1759164635592,-210.09730489,0.00016899,2]
[388423575,1759164635603,-267.99770658,0.00016899,2]
[388423576,1759164635612,-459.18087085,0.000169,2]
[388423577,1759164635620,-6189.15349518,0.000169,2]
[388423578,1759164635632,-782.07395127,0.000169,2]
[388423579,1759164635643,-425.84451,0.000169,2]
[388423580,1759164635656,-718.78087629,0.000169,2]
[388423581,1759164635667,-368.0,0.000169,2]
[388423582,1759164635678,-1731.38816097,0.000169,2]
[388423583,1759164635690,-1075.43,0.000169,2]
[388423584,1759164635701,-686.36343726,0.000169,2]
[388423585,1759164635715,-1525.23305569,0.000169,2]
[388423586,1759164635725,-1701.6785179,0.000169,2]
[388423587,1759164635736,-564.42165304,0.000169,2]
[388423588,1759164635747,-591.0905,0.000169,2]
[388423589,1759164635758,-2802.49636648,0.000169,2]
[388423590,1759164635769,-986.17788644,0.000169,2]
[388423591,1759164635785,-8826.27570657,0.000169,2]
[388423597,1759164637923,-2500.0,0.000168,2]
[388423598,1759164637935,-5114.44775861,0.000169,2]
[388423599,1759164637948,-12391.22580748,0.000169,2]
[388423600,1759164637961,-19075.96544524,0.000169,2]
[388423601,1759164638007,-2021.58959784,0.000169,2]
[388423602,1759164638021,-2648.05349585,0.000169,2]
[388423603,1759164638032,-2506.0,0.000169,2]
[388423604,1759164638047,-667.51959525,0.000169,2]
[388423605,1759164638059,-11932.67379072,0.000169,2]
[388423606,1759164638071,-106682.95809192,0.000169,2]
[388423607,1759164638081,-10651.6978,0.000169,2]
[388423608,1759164638092,-160.47105015,0.000169,2]
[388423609,1759164638102,-1000.0,0.000169,2]
[388423610,1759164638112,-2342.59209302,0.000169,2]
[388423611,1759164638123,-199.99357507,0.000169,2]
[388423612,1759164638135,-3902.57468323,0.000169,2]
[388423613,1759164638146,-489.9853619,0.000169,2]
[388423614,1759164638156,-3796.09854113,0.000169,2]
[388423615,1759164638166,-160.36395313,0.000169,2]
[388423616,1759164638176,-500.0,0.000169,2]
[388423617,1759164638187,-500.0,0.000169,2]
[388423618,1759164638197,-500.0,0.000169,2]
[388423619,1759164638208,-500.0,0.000169,2]
[388423620,1759164638218,-500.0,0.000169,2]
[388423621,1759164638228,-500.0,0.000169,2]
[388423622,1759164638238,-500.0,0.000169,2]
[388423623,1759164638247,-500.0,0.000169,2]
[388423624,1759164638256,-500.0,0.000169,2]
[388423625,1759164638265,-500.0,0.000169,2]
[388423626,1759164638275,-500.0,0.000169,2]
[388423627,1759164638284,-500.0,0.000169,2]
[388423628,1759164638292,-500.0,0.000169,2]
[388423629,1759164638302,-500.0,0.000169,2]
[388423631,1759164638311,-500.0,0.000169,2]
[388423633,1759164638320,-500.0,0.000169,2]
[388423635,1759164638330,-500.0,0.000169,2]
[388423637,1759164638339,-500.0,0.000169,2]
[388423639,1759164638348,-500.0,0.000169,2]
[388423641,1759164638359,-1572.4377,0.00016904,2]
[388423643,1759164638368,-1474.35467507,0.00016958,5]
[388423645,1759164638378,-124531.0,0.00016959,2]
[388423647,1759164638387,-547.15226032,0.00016973,2]
[388423649,1759164638396,-500.0,0.00016973,2]
[388423651,1759164638405,-500.0,0.00016973,2]
[388423652,1759164638414,-501.62690061,0.00016973,2]
[388423654,1759164638424,-500.0,0.00016973,2]
[388423656,1759164638433,-412.60064734,0.00016973,2]
[388423658,1759164638443,-500.0,0.00016973,2]
[388423660,1759164638453,-500.0,0.00016973,2]
[388423662,1759164638463,-589.47166915,0.00016973,2]
[388423664,1759164638472,-500.0,0.00016973,2]
[388423666,1759164638482,-500.0,0.00016973,2]
[388423668,1759164638491,-500.0,0.00016973,2]
[388423670,1759164638501,-500.65353541,0.00016973,2]
[388423672,1759164638511,-165.18678318,0.00016973,2]
[388423674,1759164638520,-500.0,0.00016973,2]
[388423676,1759164638530,-500.0,0.00016973,2]
[388423678,1759164638539,-557.78613881,0.00016973,2]
[388423680,1759164638549,-500.0,0.00016973,2]
[388423682,1759164638559,-500.0,0.00016973,2]
[388423684,1759164638568,-500.0,0.00016973,2]
[388423686,1759164638578,-500.0,0.00016973,2]
[388423688,1759164638589,-500.0,0.00016973,2]
[388423690,1759164638598,-522.53411858,0.00016973,2]
[388423692,1759164638609,-500.0,0.00016973,2]
[388423694,1759164638619,-500.0,0.00016973,2]
[388423696,1759164638629,-500.0,0.00016973,2]
[388423698,1759164638638,-500.0,0.00016973,2]
[388423700,1759164638648,-500.0,0.00016973,2]
[388423702,1759164638658,-508.27789364,0.00016973,2]
[388423704,1759164638668,-500.0,0.00016973,2]
[388423706,1759164638678,-500.0,0.00016973,2]
[388423708,1759164638688,-150.0,0.00016986,2]
[388423711,1759164638700,-181.16134453,0.00016986,2]
[388423713,1759164638711,-266.62156688,0.00016986,2]
[388423715,1759164638722,-268.27579335,0.00016986,2]
[388423717,1759164638731,-204.37346957,0.00016986,2]
[388423719,1759164638741,-163.47419975,0.00016986,2]
[388423721,1759164638750,-159.34593224,0.00016986,2]
[388423722,1759164638760,-197.90263636,0.00016986,2]
[388423765,1759164639187,-179.35172454,0.00016986,2]
[388423771,1759164639243,-150.0,0.00016986,2]
[388423773,1759164639253,-150.0,0.00016986,2]
[388423775,1759164639263,-201.72066229,0.00016986,2]
[388423777,1759164639273,-265.67192561,0.00016986,2]
[388423779,1759164639283,-298.55002797,0.00016986,2]
[388423781,1759164639293,-259.98627932,0.0001699,2]
[388423783,1759164639303,-151.0,0.00016997,2]
[388423785,1759164639314,-1000.0,0.00016999,5]
[388423787,1759164639324,-1000.0,0.00016999,5]
[388423789,1759164639334,-968.6,0.00016999,5]
[388423791,1759164639344,-155.0,0.00016999,2]
[388423793,1759164639355,-10000.0,0.00016999,2]
[388423795,1759164639365,-300.0,0.00016999,2]
[388423797,1759164639374,-300.0,0.00016999,2]
[388423799,1759164639385,-150.0,0.00016999,2]
[388423801,1759164639395,-666.0,0.00016999,2]
[388423803,1759164639405,-5706449.14696593,0.00017,2]
[388423805,1759164639420,-2282.0,0.00017,2]
[388423807,1759164639433,-840.14185856,0.00017,2]
[388423809,1759164639445,-542.46609112,0.00017,2]
[388423811,1759164639458,-3728.37352926,0.00017,2]
[388423816,1759164639496,-20808.99999995,0.00017,2]
[388423865,1759164639934,-530.69259837,0.00017,2]
[388423867,1759164639947,-712.5,0.00017,2]
[388423873,1759164639991,-270.00005,0.00017,2]
[388423880,1759164640047,-2795.44181759,0.00017,2]
[388423882,1759164640059,-3189.32274071,0.00017,2]
[388423884,1759164640072,-418.54789703,0.00017,2]
[388423892,1759164640157,-684.1663532,0.00017,2]
[388423898,1759164640214,-306.97569038,0.00017,2]
[388423901,1759164640226,-5798.2925,0.00017,2]
[388423903,1759164640238,-2939.79440843,0.00017,2]
[388424192,1759164643060,-576.82,0.000169,2]
[388424195,1759164643070,-3503.66,0.000169,2]
[388424198,1759164643080,-14563.06609699,0.00017,2]
[388424223,1759164643266,-1173.0414,0.00017,2]
[388424229,1759164643319,-552.74078387,0.00017,2]
[388424683,1759164647867,-18944.63802922,0.00017,2]
[388424686,1759164647883,-8808.04801292,0.00017,2]
[388424688,1759164647895,-487.015,0.00017,2]
[388424691,1759164647911,-322058.24050262,0.00017,2]
[388424693,1759164647920,-56997.73871602,0.00017,2]
[388424697,1759164647954,-94440.63239168,0.00017,2]
[388424699,1759164647966,-2054.54483863,0.00017,2]
[388426489,1759164727014,517.26,8.324e-05,2]
[388426490,1759164727355,517.26,8.763e-05,2]
[388426491,1759164727616,517.26,9.201e-05,2]
[388426492,1759164727828,517.26,9.639e-05,2]
[388426493,1759164728070,517.26,0.00010077,2]
[388426494,1759164728293,517.26,0.00010515,2]
[388426495,1759164728530,517.26,0.00010953,2]
[388426496,1759164728743,517.26,0.00011391,2]
[388426497,1759164728968,517.26,0.00011829,2]
[388426498,1759164729350,517.26,0.00012268,2]
[388426500,1759164748045,517.26,0.00012706,2]
[388426501,1759164748523,517.26,0.00013144,2]
[388426502,1759164748750,517.26,0.00013582,2]
[388426503,1759164749001,517.26,0.0001402,2]
[388426504,1759164749216,517.26,0.00014458,2]
[388426505,1759164749431,517.26,0.00014896,2]
[388426506,1759164749673,517.26,0.00015335,2]
[388426507,1759164749886,517.26,0.00015773,2]
[388426508,1759164750126,517.26,0.00016211,2]
[388426511,1759164865358,412.25,0.00015865,2]
[388426613,1759164907049,166.49,0.00016286,2]
[388426616,1759164915330,1000.0,0.00016438,2]
[388426819,1759165023827,4525.27,0.00016248,2]
[388426820,1759165028945,5905.98,0.00016438,2]
[388426844,1759165066971,250.0,0.00016142,2]